bitfinex-derivatives/quotes_BTCF0:USTF0_20250718
["timestamp","ask_amount","ask_price","bid_price","bid_amount"]
[1752849827637,0.04374338,117760.0,117750.0,0.1697609]
[1752849827938,0.01908338,117760.0,117750.0,1.16961885]
[1752849828140,0.01908338,117760.0,117750.0,0.75804695]
[1752849828342,0.18882978,117760.0,117750.0,0.75804695]
[1752849828545,0.18882978,117760.0,117750.0,0.76601327]
[1752849828847,0.18882978,117760.0,117750.0,0.22748605]
[1752849828848,0.62353978,117760.0,117750.0,0.22748605]
[1752849829044,0.62353978,117760.0,117750.0,0.16638]
[1752849829346,0.02008338,117760.0,117750.0,1.4149009]
[1752849829545,0.001,117760.0,117750.0,1.8264728]
[1752849829745,0.001,117760.0,117750.0,1.88757885]
[1752849830140,0.02466,117780.0,117750.0,1.75781795]
[1752849830344,0.1943776,117780.0,117770.0,0.75801805]
[1752849830542,0.1697176,117780.0,117770.0,1.25445235]
[1752849830740,0.2792295,117790.0,117780.0,0.3360976]
[1752849830944,0.5551748,117790.0,117780.0,1.2916719]
[1752849831139,0.15451,117780.0,117770.0,0.12127]
[1752849831344,0.836984,117780.0,117770.0,0.12127]
[1752849831552,0.169732,117770.0,117760.0,0.88006]
[1752849831750,0.243642,117770.0,117760.0,0.88006]
[1752849832250,0.604442,117770.0,117760.0,0.88006]
[1752849832446,0.604442,117770.0,117760.0,0.88002]
[1752849833149,0.244642,117770.0,117760.0,0.88002]
[1752849833451,0.605442,117770.0,117760.0,0.88002]
[1752849834149,0.605442,117770.0,117760.0,0.94112605]
[1752849834353,0.605442,117770.0,117760.0,1.11087245]
[1752849834545,0.556192,117770.0,117760.0,0.39723245]
[1752849834850,0.556192,117770.0,117760.0,0.94192605]
[1752849835149,0.170732,117770.0,117760.0,1.11167245]
[1752849835350,0.556192,117770.0,117760.0,0.94192605]
[1752849835852,0.830702,117770.0,117760.0,0.001]
[1752849836954,0.1697753,117740.0,117730.0,0.17446316]
[1752849837253,0.7097453,117740.0,117730.0,0.88774316]
[1752849837452,0.1698041,117720.0,117710.0,0.9387519]
[1752849837649,0.1944641,117720.0,117710.0,1.8218104]
[1752849837948,0.2793308,117740.0,117730.0,0.16638]
[1752849838151,0.6401308,117740.0,117730.0,0.88462]
[1752849838359,0.6401308,117740.0,117730.0,0.89277073]
[1752849838652,0.7946408,117740.0,117730.0,0.88462]
[1752849838842,0.4338408,117740.0,117730.0,1.0544097]
[1752849839048,0.2546559,117750.0,117740.0,0.1697753]
[1752849839247,0.2793159,117750.0,117740.0,0.3361553]
[1752849839555,0.2368732,117750.0,117740.0,0.3361553]
[1752849839745,0.02466,117750.0,117740.0,0.7477272]
[1752849839949,0.2802705,117770.0,117760.0,0.1697464]
[1752849840152,0.1944024,117770.0,117760.0,0.7476983]
[1752849840449,0.5552024,117770.0,117760.0,0.3361264]
[1752849840759,0.1944024,117770.0,117760.0,0.40526161]
[1752849840947,0.5552024,117770.0,117760.0,0.22748605]
[1752849841249,0.7073724,117770.0,117760.0,0.16638]
[1752849841653,0.1944024,117770.0,117760.0,0.3361264]
[1752849842154,0.1944024,117770.0,117760.0,0.16638]
[1752849842349,0.2413124,117770.0,117760.0,0.3361265]
[1752849842659,0.1944024,117770.0,117760.0,0.39723255]
[1752849842951,0.6021124,117770.0,117760.0,0.39723255]
[1752849843150,0.6021124,117770.0,117760.0,0.22748605]
[1752849843352,0.6021124,117770.0,117760.0,0.16638]
[1752849843754,0.7073724,117770.0,117760.0,0.16738]
[1752849844155,0.3465724,117770.0,117760.0,0.16738]
[1752849844356,0.7073724,117770.0,117760.0,0.12227]
[1752849844655,0.7093724,117770.0,117760.0,0.12427]
[1752849845053,0.7093724,117770.0,117760.0,0.17242]
[1752849845554,0.7093724,117770.0,117760.0,0.12227]
[1752849845952,0.7093724,117770.0,117760.0,0.001]
[1752849846854,0.8792044,117770.0,117760.0,0.001]
[1752849847658,0.7093724,117770.0,117760.0,0.001]
[1752849847857,1.0092044,117770.0,117760.0,0.001]
[1752849848358,0.1697464,117760.0,117750.0,0.7128]
[1752849848550,0.3450008,117750.0,117740.0,0.8919258]
[1752849848748,0.3450008,117750.0,117740.0,0.95303185]
[1752849848952,0.3450008,117750.0,117740.0,1.12280715]
[1752849849153,0.7058008,117750.0,117740.0,0.94486605]
[1752849849350,0.6005408,117750.0,117740.0,1.11464125]
[1752849849554,0.1928308,117750.0,117740.0,1.11464125]
[1752849849956,0.1928308,117750.0,117740.0,1.4651071]
[1752849850258,0.02307,117760.0,117750.0,0.3408408]
[1752849850454,0.1928164,117760.0,117750.0,1.17431875]
[1752849851059,0.1697464,117760.0,117750.0,1.17731875]
[1752849851257,0.6174121,117770.0,117760.0,0.1697464]
[1752849851561,0.002,117770.0,117760.0,1.88886435]
[1752849852160,1.0428887,117780.0,117770.0,0.169732]
[1752849852365,0.02307,117780.0,117770.0,1.17428995]
[1752849852566,0.1927876,117780.0,117770.0,1.17428995]
[1752849852770,0.02307,117780.0,117770.0,1.17428995]
[1752849852970,0.2121417,117790.0,117780.0,0.1697176]
[1752849853270,0.1927587,117800.0,117790.0,0.17108]
[1752849853664,0.6004687,117800.0,117790.0,0.17108]
[1752849853970,0.7057287,117800.0,117790.0,0.88348]
[1752849854165,0.7057287,117800.0,117790.0,0.83533]
[1752849854672,0.7057287,117800.0,117790.0,0.88348]
[1752849855466,0.72427371,117800.0,117790.0,0.88348]
[1752849855873,0.3449431,117790.0,117780.0,0.12293]
[1752849856073,0.7057431,117790.0,117780.0,0.84503857]
[1752849856269,0.2396831,117790.0,117780.0,1.0529575]
[1752849856576,0.1927731,117790.0,117780.0,1.48481238]
[1752849856772,0.1927731,117790.0,117780.0,1.52563545]
[1752849856773,0.5535731,117790.0,117780.0,1.52563545]
[1752849856975,0.6004831,117790.0,117780.0,1.45511444]
[1752849857174,0.7057431,117790.0,117780.0,0.94434605]
[1752849857370,0.72429256,117790.0,117780.0,0.94434605]
[1752849858077,0.72429256,117790.0,117780.0,0.94422605]
[1752849858677,0.72429256,117790.0,117780.0,0.94522605]
[1752849858878,0.72429256,117790.0,117780.0,0.83597]
[1752849859178,1.51486095,117790.0,117780.0,0.001]
[1752849859979,0.344972,117770.0,117760.0,0.12293]
[1752849860278,0.705772,117770.0,117760.0,0.83477]
[1752849860583,0.705772,117770.0,117760.0,0.3408264]
[1752849860880,0.72431673,117770.0,117760.0,0.3408264]
[1752849861080,0.72431673,117770.0,117760.0,0.17108]
[1752849861581,0.72431673,117770.0,117760.0,0.12293]
[1752849861887,0.3449864,117760.0,117750.0,0.71184]
[1752849862179,0.7057864,117760.0,117750.0,0.77294605]
[1752849862378,0.3450008,117750.0,117740.0,0.48373]
[1752849862584,0.7058008,117750.0,117740.0,0.12293]
[1752849863084,0.3450153,117740.0,117730.0,0.88276]
[1752849863381,0.3450153,117740.0,117730.0,0.88272]
[1752849863776,0.3450153,117740.0,117730.0,0.17902764]
[1752849863981,0.1928453,117740.0,117730.0,1.93198573]
[1752849864179,0.1928453,117740.0,117730.0,0.95173369]
[1752849864375,0.3450153,117740.0,117730.0,0.88268]
[1752849864579,0.2397553,117740.0,117730.0,1.45455444]
[1752849864777,0.2397553,117740.0,117730.0,1.39344839]
[1752849864982,0.2397553,117740.0,117730.0,1.45455444]
[1752849865586,0.3450153,117740.0,117730.0,0.23818605]
[1752849865881,0.7058153,117740.0,117730.0,0.94970605]
[1752849866282,0.72432105,117740.0,117730.0,0.94970605]
[1752849866482,0.72432105,117740.0,117730.0,0.71744]
[1752849866983,0.72432105,117740.0,117730.0,0.88852]
[1752849867380,0.72432105,117740.0,117730.0,1.56907779]
[1752849867381,0.61906105,117740.0,117730.0,1.56907779]
[1752849867683,0.1928453,117740.0,117730.0,0.92698289]
[1752849867881,0.1928453,117740.0,117730.0,1.63838289]
[1752849868784,0.1928453,117740.0,117730.0,1.1276145]
[1752849869080,0.1928453,117740.0,117730.0,1.63838289]
[1752849869280,0.5536453,117740.0,117730.0,0.94958605]
[1752849869485,0.6005553,117740.0,117730.0,0.94958605]
[1752849869874,0.1928453,117740.0,117730.0,0.76877545]
[1752849870075,0.169775,117740.0,117730.0,1.99378384]
[1752849870482,0.2352763,117750.0,117740.0,0.340855]
[1752849870681,0.169754,117760.0,117750.0,0.1697605]
[1752849870982,0.169754,117760.0,117750.0,1.47591655]
[1752849871285,0.63451143,117770.0,117760.0,0.1697461]
[1752849871481,0.23127543,117770.0,117760.0,1.27354054]
[1752849871684,0.18883133,117770.0,117760.0,1.27354054]
[1752849872082,0.01909963,117770.0,117760.0,1.27354054]
[1752849872781,0.18883133,117770.0,117760.0,1.27354054]
[1752849873282,0.18883133,117770.0,117760.0,1.27554054]
[1752849873484,0.18883133,117770.0,117760.0,0.76477215]
[1752849873682,0.18883133,117770.0,117760.0,1.27554054]
[1752849873878,0.1697317,117770.0,117760.0,1.27854054]
[1752849874084,0.2779015,117780.0,117770.0,0.2916717]
[1752849874284,0.1697295,117780.0,117770.0,1.98452614]
[1752849875288,0.1930395,117780.0,117770.0,1.81179444]
[1752849875488,0.1930395,117780.0,117770.0,1.81279444]
[1752849875689,0.1930395,117780.0,117770.0,1.98252614]
[1752849875891,0.1930395,117780.0,117770.0,1.54320477]
[1752849876094,0.1930395,117780.0,117770.0,2.05397316]
[1752849876280,0.2969978,117790.0,117770.0,1.88624146]
[1752849876483,0.2354513,117790.0,117780.0,1.27051174]
[1752849876786,0.1081563,117800.0,117790.0,0.16812]
[1752849877085,0.32027,117800.0,117790.0,1.45063444]
[1752849877486,0.235421,117800.0,117790.0,1.98113734]
[1752849877989,0.235421,117800.0,117790.0,1.98413734]
[1752849878189,0.235421,117800.0,117790.0,1.98113734]
[1752849878786,0.2545245,117810.0,117800.0,0.1696885]
[1752849878992,0.2545245,117810.0,117800.0,0.91268294]
[1752849879180,0.2545245,117810.0,117800.0,0.74299444]
[1752849879386,0.2778345,117810.0,117800.0,0.23710281]
[1752849879582,0.6386345,117810.0,117800.0,0.8784]
[1752849879885,0.6883245,117810.0,117800.0,0.93950605]
[1752849880088,0.6913245,117810.0,117800.0,0.93950605]
[1752849880283,0.7965845,117810.0,117800.0,0.93950605]
[1752849880683,0.6913245,117810.0,117800.0,0.93950605]
[1752849881791,0.6416345,117810.0,117800.0,0.93950605]
[1752849882090,0.6913245,117810.0,117800.0,0.93950605]
[1752849882290,0.6913245,117810.0,117800.0,1.10919455]
[1752849882485,0.2808345,117810.0,117800.0,1.10919455]
[1752849882687,0.2151037,117810.0,117800.0,1.11219455]
[1752849882889,0.1726848,117810.0,117800.0,1.62296294]
[1752849883088,0.1696848,117810.0,117800.0,1.11219455]
[1752849883289,0.1696848,117810.0,117800.0,1.62296294]
[1752849883693,0.5305795,117820.0,117810.0,0.3407941]
[1752849883694,0.2312983,117820.0,117810.0,0.3407941]
[1752849883987,0.1888794,117820.0,117810.0,1.27346854]
[1752849884293,0.2121894,117820.0,117810.0,0.59002605]
[1752849884492,0.2121894,117820.0,117810.0,0.75970015]
[1752849884694,0.2121894,117820.0,117810.0,0.59002605]
[1752849884893,0.2121894,117820.0,117810.0,0.6985941]
[1752849885194,0.2121894,117820.0,117810.0,1.27346854]
[1752849886093,0.2121894,117820.0,117810.0,0.76270015]
[1752849886489,0.2121894,117820.0,117810.0,0.75970015]
[1752849886894,0.2121894,117820.0,117810.0,0.59202605]
[1752849887091,1.23870779,117820.0,117810.0,0.12394]
[1752849887289,0.3643085,117800.0,117790.0,0.0541679]
[1752849887690,0.1929985,117800.0,117790.0,1.09543919]
[1752849887885,1.23587689,117800.0,117790.0,0.10728605]
[1752849888085,0.3643373,117780.0,117770.0,0.12275367]
[1752849888287,0.1505935,117790.0,117770.0,0.87456839]
[1752849888490,0.3202964,117790.0,117780.0,1.32729444]
[1752849888695,0.2121296,117790.0,117780.0,1.50001174]
[1752849889093,0.2121296,117790.0,117780.0,1.50988628]
[1752849889390,0.2121296,117790.0,117780.0,1.62191174]
[1752849889595,0.2121296,117790.0,117780.0,1.48181668]
[1752849889794,0.2121296,117790.0,117780.0,0.91958507]
[1752849889990,0.2354396,117790.0,117780.0,1.62870507]
[1752849890191,0.2354396,117790.0,117780.0,1.98950507]
[1752849890592,0.1930129,117790.0,117780.0,1.98950507]
[1752849890800,0.01888273,117800.0,117790.0,0.3408229]
[1752849891097,0.01888273,117800.0,117790.0,1.27349734]
[1752849891293,0.01888273,117800.0,117790.0,0.76272895]
[1752849891493,0.18857123,117800.0,117790.0,1.27349734]
[1752849891693,0.18857123,117800.0,117790.0,0.59002605]
[1752849891994,0.57268123,117800.0,117790.0,0.93810605]
[1752849892193,1.25475962,117800.0,117790.0,0.16812]
[1752849892499,1.25475962,117800.0,117790.0,0.87692]
[1752849892695,1.30475962,117800.0,117790.0,0.12294]
[1752849892899,1.47454362,117800.0,117790.0,0.001]
[1752849893102,1.30475962,117800.0,117790.0,0.16912]
[1752849893392,0.79399123,117800.0,117790.0,0.16912]
[1752849893598,0.74399123,117800.0,117790.0,0.16912]
[1752849893901,0.57268123,117800.0,117790.0,0.16912]
[1752849894292,0.74399123,117800.0,117790.0,0.16912]
[1752849894494,0.74399123,117800.0,117790.0,0.3388233]
[1752849894691,0.1929985,117800.0,117790.0,1.21039169]
[1752849894898,0.1696889,117800.0,117790.0,1.35934384]
[1752849895096,0.2778349,117810.0,117800.0,0.1696889]
[1752849895289,0.2121042,117810.0,117800.0,1.11039495]
[1752849895489,0.2121042,117810.0,117800.0,1.62116334]
[1752849895796,0.2354142,117810.0,117800.0,1.10739495]
[1752849897496,0.2851042,117810.0,117800.0,0.8766]
[1752849897696,0.2354142,117810.0,117800.0,1.10739485]
[1752849897998,0.2354142,117810.0,117800.0,1.97896324]
[1752849898402,0.2384142,117810.0,117800.0,1.46819485]
[1752849898596,0.2384142,117810.0,117800.0,1.97896324]
[1752849899096,0.2151042,117810.0,117800.0,1.91745719]
[1752849899301,0.2151042,117810.0,117800.0,1.98156324]
[1752849899802,0.2121042,117810.0,117800.0,1.98156324]
[1752849900000,0.2121042,117810.0,117800.0,1.98356324]
[1752849900197,0.1696853,117810.0,117800.0,1.99332122]
[1752849900400,0.2778148,117820.0,117810.0,0.2158544]
[1752849900697,0.2778148,117820.0,117810.0,1.14852884]
[1752849900901,0.2778148,117820.0,117810.0,0.46808605]
[1752849901103,0.4460948,117820.0,117810.0,0.04618]
[1752849901404,0.2778148,117820.0,117810.0,0.27696045]
[1752849901598,0.2778148,117820.0,117810.0,0.78772884]
[1752849901804,0.2353975,117820.0,117810.0,0.64076045]
[1752849902004,0.2353975,117820.0,117810.0,1.15152884]
[1752849902306,0.2353975,117820.0,117810.0,1.27019884]
[1752849902695,0.2150875,117820.0,117810.0,0.59666927]
[1752849902897,0.2392375,117820.0,117810.0,1.30438927]
[1752849903093,1.40908589,117820.0,117810.0,0.00991322]
[1752849903404,0.3621044,117810.0,117800.0,0.87216]
[1752849903600,0.7229044,117810.0,117800.0,0.88207596]
[1752849903799,0.3621044,117810.0,117800.0,0.87208]
[1752849903996,0.7229044,117810.0,117800.0,0.87208]
[1752849904304,0.1938244,117810.0,117800.0,1.5624551]
[1752849904495,0.1696744,117810.0,117800.0,2.11462095]
[1752849904695,0.1696713,117820.0,117810.0,0.3372344]
[1752849904897,0.1696713,117820.0,117810.0,1.97734884]
[1752849905200,0.1513901,117830.0,117820.0,0.2574851]
[1752849905201,0.1696456,117830.0,117820.0,0.2574851]
[1752849905494,0.1696456,117830.0,117820.0,1.89759954]
[1752849905701,0.2786128,117840.0,117830.0,0.3342056]
[1752849905895,0.2786128,117840.0,117830.0,1.26688004]
[1752849906100,0.2362024,117840.0,117830.0,1.26688004]
[1752849906607,0.02415,117840.0,117830.0,1.26688004]
[1752849906803,0.02415,117840.0,117830.0,1.27679623]
[1752849907106,0.2785933,117850.0,117840.0,0.3341912]
[1752849907304,0.08530293,117870.0,117860.0,0.1696025]
[1752849907505,0.84469513,117870.0,117860.0,0.16456]
[1752849907699,0.84469513,117870.0,117860.0,0.87176]
[1752849908102,0.3378822,117860.0,117850.0,0.52536]
[1752849908308,1.36191009,117860.0,117850.0,0.7072]
[1752849908498,0.3378966,117850.0,117840.0,0.16456]
[1752849908803,0.362061,117840.0,117830.0,0.16656]
[1752849909100,0.362061,117840.0,117810.0,0.3342347]
[1752849909101,0.1938098,117820.0,117810.0,0.3342347]
[1752849909307,0.5846098,117820.0,117810.0,0.16456]
[1752849909500,0.1696603,117820.0,117810.0,1.36288649]
[1752849909700,0.2362173,117830.0,117820.0,0.3342203]
[1752849910007,0.2362173,117830.0,117820.0,0.75612635]
[1752849910307,0.2120673,117830.0,117820.0,1.46308635]
[1752849910612,1.12838159,117850.0,117840.0,0.3341914]
[1752849910804,1.0618735,117850.0,117840.0,0.75609745]
[1752849911110,0.1696137,117860.0,117850.0,0.16456]
[1752849911304,0.1696137,117860.0,117850.0,1.10216305]
[1752849911305,0.18791897,117860.0,117850.0,1.10216305]
[1752849911705,0.21206897,117860.0,117850.0,0.93254605]
[1752849912100,0.38034897,117860.0,117850.0,0.93254605]
[1752849912309,0.38034897,117860.0,117850.0,0.87144]
[1752849912310,1.38191736,117860.0,117850.0,0.87144]
[1752849912507,1.38191736,117860.0,117850.0,0.70676]
[1752849912711,0.3620469,117850.0,117840.0,0.75265]
[1752849912907,0.3620613,117840.0,117830.0,0.87132]
[1752849913112,0.7228613,117840.0,117830.0,0.87132]
[1752849913307,0.02415,117840.0,117830.0,1.91253409]
[1752849913502,0.2361801,117850.0,117840.0,0.3341913]
[1752849913707,0.01830869,117850.0,117840.0,1.26986574]
[1752849913903,0.1716134,117860.0,117850.0,0.1696169]
[1752849914109,0.02031042,117860.0,117850.0,1.20874529]
[1752849914310,0.02031042,117860.0,117850.0,1.97649134]
[1752849914704,0.002,117860.0,117850.0,2.52725973]
[1752849914909,0.2119713,117880.0,117870.0,0.2119728]
[1752849915111,0.25443505,117880.0,117870.0,1.44801174]
[1752849915413,0.21204155,117880.0,117870.0,1.55146569]
[1752849915607,0.21204155,117880.0,117870.0,1.97337174]
[1752849915813,0.21204155,117880.0,117870.0,1.61257174]
[1752849916210,0.21204155,117880.0,117870.0,1.10180335]
[1752849916508,0.21204155,117880.0,117870.0,1.46260335]
[1752849916704,0.21204155,117880.0,117870.0,1.61257174]
[1752849917011,0.26141155,117880.0,117870.0,0.93222605]
[1752849917217,0.21504155,117880.0,117870.0,1.10181435]
[1752849917609,0.19089155,117880.0,117870.0,1.97338274]
[1752849917911,0.003,117880.0,117870.0,1.46561435]
[1752849918213,0.003,117880.0,117870.0,1.97638274]
[1752849918709,0.1725739,117880.0,117870.0,1.26982274]
[1752849918909,0.1745451,117900.0,117890.0,0.3371195]
[1752849919109,0.1986951,117900.0,117890.0,1.29266605]
[1752849919416,0.1986951,117900.0,117890.0,1.97295394]
[1752849919808,0.1745451,117900.0,117890.0,1.97295394]
[1752849920009,0.19267269,117900.0,117890.0,1.26679394]
[1752849920213,0.19267269,117900.0,117890.0,1.46218555]
[1752849920403,0.19667269,117900.0,117890.0,1.10541304]
[1752849920605,0.22082269,117900.0,117890.0,1.47020425]
[1752849921004,0.22082269,117900.0,117890.0,1.30064465]
[1752849921208,0.2026951,117900.0,117890.0,1.47016425]
[1752849921508,0.1865451,117900.0,117890.0,1.98193264]
[1752849921710,0.01855193,117910.0,117900.0,0.1695456]
[1752849921911,0.18808313,117910.0,117900.0,1.26678004]
[1752849922109,0.01855193,117910.0,117900.0,1.26678004]
[1752849923007,0.2824101,117930.0,117920.0,0.1695167]
[1752849923209,0.01812002,117930.0,117920.0,1.91152509]
[1752849923514,0.01812002,117930.0,117920.0,2.01263114]
[1752849923715,0.38005242,117930.0,117920.0,1.29218605]
[1752849923919,0.38005242,117930.0,117920.0,1.18519]
[1752849924109,0.38004708,117930.0,117920.0,0.47947]
[1752849924314,0.3619611,117910.0,117900.0,0.16456]
[1752849924513,1.23352949,117910.0,117900.0,0.70572]
[1752849924710,1.23652949,117910.0,117900.0,0.70572]
[1752849924919,0.3378255,117900.0,117890.0,0.3341199]
[1752849925119,0.3619755,117900.0,117890.0,1.10090595]
[1752849925311,0.1695456,117900.0,117890.0,1.89268954]
[1752849925519,0.2400643,117910.0,117900.0,0.3341056]
[1752849925715,0.1936943,117910.0,117900.0,0.75601165]
[1752849926015,0.1936943,117910.0,117900.0,1.46165165]
[1752849926220,0.1936943,117910.0,117900.0,0.75601165]
[1752849926421,0.1936943,117910.0,117900.0,1.46161165]
[1752849926719,0.1936943,117910.0,117900.0,1.97238004]
[1752849927217,0.1936943,117910.0,117900.0,1.46161165]
[1752849927415,0.1936943,117910.0,117900.0,1.97238004]
[1752849927416,0.1695443,117910.0,117900.0,1.97238004]
[1752849927618,0.2400368,117920.0,117910.0,0.3340912]
[1752849927817,0.283419,117930.0,117920.0,0.2881868]
[1752849928017,0.329789,117930.0,117920.0,1.0395168]
[1752849928219,0.362944,117930.0,117920.0,1.46142285]
[1752849928413,0.241034,117930.0,117920.0,1.46142285]
[1752849928620,0.241034,117930.0,117920.0,1.97219124]
[1752849929019,0.241034,117930.0,117920.0,1.46142285]
[1752849930214,0.170514,117930.0,117920.0,1.46142285]
[1752849930422,0.170514,117930.0,117920.0,1.97219124]
[1752849930720,0.23078306,117940.0,117930.0,0.1695028]
[1752849930921,0.23078306,117940.0,117930.0,1.26286724]
[1752849931116,0.23078306,117940.0,117930.0,0.75209885]
[1752849931318,0.41897306,117940.0,117930.0,0.75209885]
[1752849931513,0.77977306,117940.0,117930.0,0.39129885]
[1752849932211,0.77977306,117940.0,117930.0,0.22179605]
[1752849932412,0.77977306,117940.0,117930.0,0.39129875]
[1752849932718,0.56790826,117940.0,117930.0,0.8745827]
[1752849933120,0.56790826,117940.0,117910.0,0.52288]
[1752849933121,0.06795,117920.0,117910.0,0.52288]
[1752849933317,0.69895839,117920.0,117910.0,0.8198]
[1752849933521,0.3577071,117920.0,117910.0,0.8745315]
[1752849933816,0.3577071,117920.0,117910.0,0.705]
[1752849934017,0.86847549,117920.0,117910.0,0.8745315]
[1752849934221,0.3577071,117920.0,117910.0,0.8745315]
[1752849934417,0.18819,117920.0,117910.0,1.2353315]
[1752849934624,0.56890826,117940.0,117930.0,0.1695028]
[1752849934928,0.74139666,117940.0,117930.0,0.2843028]
[1752849935127,0.21110826,117940.0,117930.0,1.0364628]
[1752849935328,1.25216515,117940.0,117930.0,0.2843028]
[1752849935529,0.73839676,117940.0,117930.0,0.9891428]
[1752849935728,0.73739676,117940.0,117930.0,0.9891428]
[1752849935924,0.73739676,117940.0,117930.0,1.0364228]
[1752849936331,0.7184785,117940.0,117930.0,0.9891428]
[1752849936534,0.3576785,117940.0,117930.0,1.0364228]
[1752849936831,0.02278,117940.0,117930.0,1.96909724]
[1752849937034,0.02378,117940.0,117930.0,1.96909724]
[1752849937232,0.001,117940.0,117930.0,1.45832885]
[1752849937425,0.1704885,117940.0,117930.0,1.45832885]
[1752849937630,0.2384385,117940.0,117930.0,1.96909724]
[1752849937825,0.2384385,117940.0,117930.0,1.09752885]
[1752849938031,0.86944689,117940.0,117930.0,1.05008885]
[1752849938232,0.3586785,117940.0,117930.0,1.05008885]
[1752849938431,1.23024689,117940.0,117930.0,1.04996885]
[1752849938633,0.3616785,117940.0,117930.0,1.09724885]
[1752849938936,0.3616785,117940.0,117930.0,0.39268885]
[1752849939140,0.87244689,117940.0,117930.0,1.09720885]
[1752849939334,0.3616785,117940.0,117930.0,1.09720885]
[1752849939527,0.2414385,117940.0,117930.0,1.16537025]
[1752849939732,0.2414385,117940.0,117930.0,1.52617025]
[1752849939733,0.02578,117940.0,117930.0,1.52617025]
[1752849940031,0.003,117940.0,117930.0,2.03693864]
[1752849940830,0.1724885,117940.0,117930.0,2.03693864]
[1752849941025,0.2404385,117940.0,117930.0,1.52817025]
[1752849941224,0.3576785,117940.0,117930.0,1.52817025]
[1752849941425,0.3576785,117940.0,117930.0,1.52917025]
[1752849942027,0.0423689,117950.0,117930.0,1.16591584]
[1752849942231,0.2118377,117960.0,117950.0,0.3315541]
[1752849942427,0.4000115,117970.0,117960.0,0.3315397]
[1752849942641,0.02278,117970.0,117960.0,1.90734809]
[1752849942832,0.3221105,117980.0,117970.0,0.1694454]
[1752849943138,0.3221105,117980.0,117970.0,0.39263145]
[1752849943436,0.4423505,117980.0,117970.0,0.22318605]
[1752849943634,0.95311889,117980.0,117970.0,0.1148]
[1752849943831,0.1694597,117960.0,117950.0,0.6622776]
[1752849944135,0.1694597,117960.0,117950.0,1.0356341]
[1752849944136,0.1922397,117960.0,117950.0,1.0356341]
[1752849944337,0.3576497,117960.0,117950.0,1.09674015]
[1752849944727,0.3576497,117960.0,117950.0,0.06110605]
[1752849944927,0.3576497,117960.0,117950.0,1.04934015]
[1752849945127,0.3576497,117960.0,117950.0,1.09662015]
[1752849946239,0.3576497,117960.0,117950.0,1.10942397]
[1752849946438,0.3576497,117960.0,117950.0,0.40558397]
[1752849946737,0.3576497,117960.0,117950.0,1.10938397]
[1752849946938,0.3576497,117960.0,117950.0,1.10934397]
[1752849947333,0.3576497,117960.0,117950.0,0.40558397]
[1752849947536,0.3576497,117960.0,117950.0,1.10930397]
[1752849947833,0.3576497,117960.0,117950.0,1.10930883]
[1752849948036,0.3576497,117960.0,117950.0,1.09938015]
[1752849948233,0.7184497,117960.0,117950.0,0.22618605]
[1752849948442,0.7184497,117960.0,117950.0,0.003]
[1752849948637,1.39877809,117960.0,117950.0,0.003]
[1752849948838,1.51877809,117960.0,117950.0,0.70656]
[1752849949641,1.34921809,117960.0,117950.0,0.70656]
[1752849950142,0.7184497,117960.0,117950.0,0.8760341]
[1752849950336,1.22921809,117960.0,117950.0,0.1724741]
[1752849950533,1.22921809,117960.0,117950.0,0.8759941]
[1752849950738,1.23221809,117960.0,117950.0,0.8729941]
[1752849950942,0.7214497,117960.0,117950.0,1.0350741]
[1752849951245,0.3606497,117960.0,117950.0,1.09618015]
[1752849952939,0.3596497,117960.0,117950.0,1.45698015]
[1752849953342,0.3576497,117960.0,117950.0,1.46098015]
[1752849953544,0.2374097,117960.0,117950.0,1.46198015]
[1752849953939,0.2374097,117960.0,117950.0,1.97274854]
[1752849954140,0.2374097,117960.0,117950.0,1.46198015]
[1752849954341,0.6081304,117970.0,117960.0,0.1694597]
[1752849954342,0.3124654,117970.0,117960.0,0.1694597]
[1752849954646,0.3576354,117970.0,117960.0,0.3315397]
[1752849954850,0.3576354,117970.0,117960.0,0.6923397]
[1752849955547,0.3576354,117970.0,117960.0,0.75344575]
[1752849955743,0.3576354,117970.0,117960.0,1.26421414]
[1752849955945,0.3576354,117970.0,117960.0,1.2741473]
[1752849956148,0.3576354,117970.0,117960.0,0.59391921]
[1752849956450,0.7204354,117970.0,117960.0,0.70292]
[1752849956943,0.1694597,117960.0,117950.0,0.4113705]
[1752849957138,0.1922397,117960.0,117950.0,1.08672805]
[1752849957344,0.2374097,117960.0,117950.0,2.01940249]
[1752849958047,0.1694597,117960.0,117950.0,2.01940249]
[1752849958449,0.2965479,117970.0,117960.0,0.3315399]
[1752849958649,0.3193279,117970.0,117960.0,0.7633797]
[1752849959045,0.3644979,117970.0,117960.0,0.70227365]
[1752849959349,0.3644979,117970.0,117960.0,0.7633797]
[1752849959645,0.4847379,117970.0,117960.0,0.75344595]
[1752849960049,0.4847379,117970.0,117960.0,0.75544595]
[1752849960644,0.2769635,117970.0,117960.0,0.75544595]
[1752849960840,0.400839,117990.0,117980.0,0.3302711]
[1752849961043,0.400839,117990.0,117980.0,1.90427949]
[1752849961247,0.400839,117990.0,117980.0,1.96538554]
[1752849961447,0.283539,117990.0,117980.0,1.45461715]
[1752849961649,0.283539,117990.0,117980.0,1.96538554]
[1752849961845,0.283539,117990.0,117960.0,0.3628]
[1752849961846,0.1694455,117970.0,117960.0,0.16284]
[1752849962044,1.34006389,117970.0,117960.0,0.002]
[1752849962241,0.2867886,117940.0,117930.0,0.63516062]
[1752849962442,0.3585386,117940.0,117930.0,1.52269045]
[1752849962748,0.1921586,117940.0,117930.0,1.52269045]
[1752849962943,0.335883,117930.0,117920.0,0.73661635]
[1752849963152,0.358553,117930.0,117920.0,0.36090513]
[1752849963552,0.358553,117930.0,117920.0,0.53042253]
[1752849963749,0.358553,117930.0,117920.0,0.7977278]
[1752849963951,0.358553,117930.0,117920.0,1.3302904]
[1752849964145,0.358553,117930.0,117920.0,1.2834304]
[1752849964345,0.02267,117930.0,117920.0,1.4998077]
[1752849964550,0.61447139,117940.0,117930.0,0.330343]
[1752849964849,0.78085139,117940.0,117930.0,0.11398]
[1752849965050,0.78085139,117940.0,117930.0,0.70204]
[1752849965350,0.3585529,117930.0,117920.0,0.20630435]
[1752849965551,0.3585529,117930.0,117920.0,0.2674104]
[1752849965750,0.7203529,117930.0,117920.0,0.1065704]
[1752849965949,0.7203529,117930.0,117920.0,0.74742435]
[1752849966249,0.7193529,117930.0,117920.0,0.1065704]
[1752849966450,1.21795542,117930.0,117920.0,0.04546435]
[1752849966655,1.21795542,117930.0,117920.0,0.00010513]
[1752849966858,1.63755542,117930.0,117920.0,0.00010513]
[1752849967057,0.3585673,117920.0,117910.0,0.00145]
[1752849967253,0.2795173,117920.0,117910.0,0.78578334]
[1752849967456,0.11,117920.0,117910.0,1.90962939]
[1752849967752,0.3585673,117920.0,117910.0,1.33139527]
[1752849967958,0.35865229,117920.0,117910.0,1.50092687]
[1752849968358,0.02275499,117920.0,117910.0,1.50102687]